[Event "Early-Titled-Tuesday-Blitz-January-16-2024"]
[Site "Chess.com"]
[Date "2024.01.16"]
[Round "6"]
[White "SahibSinghKnight"]
[Black "Russian_berezka"]
[Result "0-1"]
[WhiteElo "2673"]
[BlackElo "2565"]
[TimeControl "180+1"]
[EndTime "9:09:39 PST"]
[Termination "Russian_berezka won by resignation"]

1. e4 {[%clk 0:02:58]} 1... g6 {[%clk 0:02:59.7]} 2. d4 {[%clk 0:02:57.6]} 2...
Bg7 {[%clk 0:02:57.7]} 3. Nc3 {[%clk 0:02:58.1]} 3... d5 {[%clk 0:02:57.8]} 4.
Nxd5 {[%clk 0:02:49.6]} 4... c6 {[%clk 0:02:57.5]} 5. Nc3 {[%clk 0:02:48.9]}
5... Qxd4 {[%clk 0:02:58.1]} 6. Qxd4 {[%clk 0:02:48.2]} 6... Bxd4 {[%clk
0:02:59]} 7. Nge2 {[%clk 0:02:48.7]} 7... Bg7 {[%clk 0:02:58.9]} 8. Be3 {[%clk
0:02:43.5]} 8... e5 {[%clk 0:02:59]} 9. O-O-O {[%clk 0:02:43.7]} 9... Ne7 {[%clk
0:02:58.4]} 10. h4 {[%clk 0:02:39.9]} 10... h5 {[%clk 0:02:54.1]} 11. f3 {[%clk
0:02:35.8]} 11... Be6 {[%clk 0:02:53.9]} 12. Kb1 {[%clk 0:02:31.5]} 12... Nd7
{[%clk 0:02:54.1]} 13. Nc1 {[%clk 0:02:27.7]} 13... a6 {[%clk 0:02:48.6]} 14.
Nb3 {[%clk 0:02:26.3]} 14... O-O-O {[%clk 0:02:48.6]} 15. Na5 {[%clk 0:02:20.3]}
15... Kc7 {[%clk 0:02:44.7]} 16. Bc4 {[%clk 0:02:16.9]} 16... Bxc4 {[%clk
0:02:36.6]} 17. Nxc4 {[%clk 0:02:17.8]} 17... b5 {[%clk 0:02:37.3]} 18. Nd6
{[%clk 0:02:08.9]} 18... Rhf8 {[%clk 0:02:29.7]} 19. Rd2 {[%clk 0:01:52.3]}
19... Nc8 {[%clk 0:02:10.4]} 20. Rhd1 {[%clk 0:01:47.4]} 20... Nxd6 {[%clk
0:02:10.6]} 21. Rxd6 {[%clk 0:01:47.8]} 21... Bf6 {[%clk 0:02:11.3]} 22. g3
{[%clk 0:01:33.1]} 22... Be7 {[%clk 0:02:11.3]} 23. R6d3 {[%clk 0:01:30.5]}
23... Nb8 {[%clk 0:02:04.7]} 24. a4 {[%clk 0:01:26.4]} 24... Rxd3 {[%clk
0:02:03.5]} 25. cxd3 {[%clk 0:01:25.2]} 25... Nd7 {[%clk 0:02:01.9]} 26. d4
{[%clk 0:01:23.9]} 26... exd4 {[%clk 0:01:57.4]} 27. Bxd4 {[%clk 0:01:24.8]}
27... Bf6 {[%clk 0:01:46.9]} 28. axb5 {[%clk 0:01:06.6]} 28... axb5 {[%clk
0:01:46.3]} 29. Bxf6 {[%clk 0:01:00.9]} 29... Nxf6 {[%clk 0:01:44.6]} 30. e5
{[%clk 0:01:01.8]} 30... Nd7 {[%clk 0:01:39.7]} 31. f4 {[%clk 0:01:00.7]} 31...
Nc5 {[%clk 0:01:39.3]} 32. b4 {[%clk 0:00:58.2]} 32... Na6 {[%clk 0:01:38.1]}
33. Ne4 {[%clk 0:00:27.9]} 33... Nxb4 {[%clk 0:01:37.8]} 34. Ng5 {[%clk
0:00:26.1]} 34... Nd5 {[%clk 0:01:37.8]} 35. e6 {[%clk 0:00:24.2]} 35... Nc3+
{[%clk 0:01:35.8]} 36. Kc2 {[%clk 0:00:14.6]} 36... Nxd1 {[%clk 0:01:36.7]} 37.
exf7 {[%clk 0:00:14.6]} 37... Kd7 {[%clk 0:01:23]} 38. Kxd1 {[%clk 0:00:13.8]}
38... Ke7 {[%clk 0:01:22.8]} 39. Kd2 {[%clk 0:00:14.4]} 39... Rxf7 {[%clk
0:01:23.2]} 40. Nxf7 {[%clk 0:00:13.9]} 40... Kxf7 {[%clk 0:01:23.4]} 41. Kc3
{[%clk 0:00:13.5]} 41... Kf6 {[%clk 0:01:23.8]} 42. Kd4 {[%clk 0:00:13.8]} 42...
Kf5 {[%clk 0:01:24.4]} 43. Kc5 {[%clk 0:00:14.4]} 43... Kg4 {[%clk 0:01:24.7]}
0-1

[Event "Early-Titled-Tuesday-Blitz-January-16-2024"]
[Site "Chess.com"]
[Date "2024.01.16"]
[Round "6"]
[White "lucliasco"]
[Black "xakevicius91"]
[Result "1/2-1/2"]
[WhiteElo "2896"]
[BlackElo "2537"]
[TimeControl "180+1"]
[EndTime "9:09:53 PST"]
[Termination "Game drawn by repetition"]

1. d4 {[%clk 0:02:38.7]} 1... Nf6 {[%clk 0:02:59.5]} 2. Nf3 {[%clk 0:02:38.4]}
2... e6 {[%clk 0:02:59.7]} 3. Bf4 {[%clk 0:02:38]} 3... c5 {[%clk 0:03:00]} 4.
e3 {[%clk 0:02:37.4]} 4... cxd4 {[%clk 0:02:59.6]} 5. exd4 {[%clk 0:02:37.5]}
5... b6 {[%clk 0:02:58.9]} 6. Nbd2 {[%clk 0:02:37]} 6... Ba6 {[%clk 0:02:58.1]}
7. Bxa6 {[%clk 0:02:35.9]} 7... Nxa6 {[%clk 0:02:59]} 8. c3 {[%clk 0:02:36.2]}
8... Be7 {[%clk 0:02:56]} 9. O-O {[%clk 0:02:36.2]} 9... O-O {[%clk 0:02:56]}
10. Re1 {[%clk 0:02:36.8]} 10... Nc7 {[%clk 0:02:56.1]} 11. h3 {[%clk 0:02:34]}
11... d6 {[%clk 0:02:56.3]} 12. a4 {[%clk 0:02:32.8]} 12... Qd7 {[%clk
0:02:55.2]} 13. Qb3 {[%clk 0:02:30]} 13... Qc6 {[%clk 0:02:52.3]} 14. Qc4 {[%clk
0:02:25.3]} 14... Qxc4 {[%clk 0:02:49.9]} 15. Nxc4 {[%clk 0:02:26.2]} 15... Rfd8
{[%clk 0:02:49.7]} 16. Nfd2 {[%clk 0:02:11.7]} 16... Rac8 {[%clk 0:02:48.2]} 17.
Bh2 {[%clk 0:02:08.3]} 17... Ncd5 {[%clk 0:02:46.1]} 18. Ne3 {[%clk 0:02:02.6]}
18... Nxe3 {[%clk 0:02:44.1]} 19. fxe3 {[%clk 0:02:00.3]} 19... a6 {[%clk
0:02:42.2]} 20. e4 {[%clk 0:01:58]} 20... Bf8 {[%clk 0:02:41]} 21. e5 {[%clk
0:01:56.6]} 21... dxe5 {[%clk 0:02:40.8]} 22. Bxe5 {[%clk 0:01:56.1]} 22... Nd5
{[%clk 0:02:40.8]} 23. Nb3 {[%clk 0:01:38.2]} 23... Ra8 {[%clk 0:02:33.6]} 24.
Bg3 {[%clk 0:01:32.9]} 24... Rdc8 {[%clk 0:02:31.3]} 25. Bf2 {[%clk 0:01:25.6]}
25... Be7 {[%clk 0:02:30.6]} 26. Rec1 {[%clk 0:01:21]} 26... Bg5 {[%clk
0:02:22.4]} 27. Rd1 {[%clk 0:01:21.2]} 27... h5 {[%clk 0:02:12.1]} 28. Rd3
{[%clk 0:01:07.8]} 28... h4 {[%clk 0:02:11.6]} 29. Kf1 {[%clk 0:01:04.6]} 29...
Rc6 {[%clk 0:02:09.8]} 30. Rf3 {[%clk 0:00:58.9]} 30... Rcc8 {[%clk 0:02:07.6]}
31. Rd3 {[%clk 0:00:57.8]} 31... b5 {[%clk 0:02:07.7]} 32. Nc5 {[%clk 0:00:56]}
32... Be7 {[%clk 0:02:02.6]} 33. b4 {[%clk 0:00:54.9]} 33... a5 {[%clk
0:01:52.8]} 34. axb5 {[%clk 0:00:49.6]} 34... axb4 {[%clk 0:01:52.6]} 35. Rxa8
{[%clk 0:00:49.7]} 35... Rxa8 {[%clk 0:01:53.5]} 36. c4 {[%clk 0:00:49.3]} 36...
Nb6 {[%clk 0:01:49.9]} 37. Rb3 {[%clk 0:00:38.4]} 37... Nxc4 {[%clk 0:01:48.5]}
38. Rxb4 {[%clk 0:00:38.6]} 38... Nb6 {[%clk 0:01:47.2]} 39. Rb1 {[%clk
0:00:36.8]} 39... Kf8 {[%clk 0:01:40.5]} 40. Na6 {[%clk 0:00:33.7]} 40... Bd6
{[%clk 0:01:35.4]} 41. Bxh4 {[%clk 0:00:29.8]} 41... Rc8 {[%clk 0:01:26.9]} 42.
Be1 {[%clk 0:00:27.4]} 42... Rc2 {[%clk 0:01:10.9]} 43. Ba5 {[%clk 0:00:25.5]}
43... Nc4 {[%clk 0:01:11]} 44. Bb4 {[%clk 0:00:24.9]} 44... Ne3+ {[%clk
0:01:08.7]} 45. Kg1 {[%clk 0:00:21.3]} 45... Rxg2+ {[%clk 0:01:08.7]} 46. Kh1
{[%clk 0:00:21.8]} 46... Rh2+ {[%clk 0:01:08.8]} 47. Kg1 {[%clk 0:00:21.5]}
47... Rg2+ {[%clk 0:01:07]} 48. Kh1 {[%clk 0:00:22]} 48... Rh2+ {[%clk
0:01:07.5]} 49. Kg1 {[%clk 0:00:22.5]} 49... Rg2+ {[%clk 0:01:07.9]} 1/2-1/2

[Event "Early-Titled-Tuesday-Blitz-January-16-2024"]
[Site "Chess.com"]
[Date "2024.01.16"]
[Round "6"]
[White "DeArron_Fox"]
[Black "Zakaryan_David"]
[Result "0-1"]
[WhiteElo "2413"]
[BlackElo "2656"]
[TimeControl "180+1"]
[EndTime "9:09:54 PST"]
[Termination "Zakaryan_David won on time"]

1. d4 {[%clk 0:03:00.9]} 1... Nf6 {[%clk 0:02:57.7]} 2. c4 {[%clk 0:02:59.6]}
2... e6 {[%clk 0:02:56]} 3. Nf3 {[%clk 0:03:00]} 3... Bb4+ {[%clk 0:02:52.1]} 4.
Bd2 {[%clk 0:02:53.4]} 4... Be7 {[%clk 0:02:52.2]} 5. g3 {[%clk 0:02:53.1]} 5...
O-O {[%clk 0:02:52.3]} 6. Bg2 {[%clk 0:02:53.5]} 6... d5 {[%clk 0:02:52.9]} 7.
O-O {[%clk 0:02:52.2]} 7... c6 {[%clk 0:02:53.8]} 8. Bf4 {[%clk 0:02:50.3]} 8...
b6 {[%clk 0:02:52.5]} 9. Qc2 {[%clk 0:02:38.3]} 9... Bb7 {[%clk 0:02:49.4]} 10.
Nbd2 {[%clk 0:02:34.8]} 10... Nbd7 {[%clk 0:02:26.2]} 11. e4 {[%clk 0:02:26.8]}
11... dxe4 {[%clk 0:02:24.9]} 12. Nxe4 {[%clk 0:02:25.4]} 12... Nxe4 {[%clk
0:02:25.1]} 13. Qxe4 {[%clk 0:02:26.3]} 13... Nf6 {[%clk 0:02:26]} 14. Qc2
{[%clk 0:02:23.4]} 14... c5 {[%clk 0:02:26.3]} 15. Rad1 {[%clk 0:02:21.4]} 15...
cxd4 {[%clk 0:02:26.2]} 16. Nxd4 {[%clk 0:02:11.1]} 16... Bxg2 {[%clk
0:02:07.2]} 17. Kxg2 {[%clk 0:01:47.7]} 17... Qc8 {[%clk 0:02:07.3]} 18. Qe2
{[%clk 0:01:42.8]} 18... Rd8 {[%clk 0:01:59.7]} 19. b3 {[%clk 0:01:34.2]} 19...
Qc5 {[%clk 0:01:51.9]} 20. Nb5 {[%clk 0:01:15.6]} 20... a6 {[%clk 0:01:37.9]}
21. Nc3 {[%clk 0:01:14.9]} 21... b5 {[%clk 0:01:32.9]} 22. Be3 {[%clk
0:00:45.4]} 22... Qb4 {[%clk 0:01:09.1]} 23. Rc1 {[%clk 0:00:22.2]} 23... Rac8
{[%clk 0:00:57.9]} 24. Bd2 {[%clk 0:00:04.3]} 24... bxc4 {[%clk 0:00:56.9]} 25.
bxc4 {[%clk 0:00:03.2]} 25... Qxc4 {[%clk 0:00:46.5]} 26. Qxc4 {[%clk
0:00:03.1]} 26... Rxc4 {[%clk 0:00:46.7]} 27. Be3 {[%clk 0:00:03]} 27... Rdc8
{[%clk 0:00:44.8]} 28. Rc2 {[%clk 0:00:03.6]} 28... Rxc3 {[%clk 0:00:44.1]} 29.
Rb2 {[%clk 0:00:01.7]} 29... Nd5 {[%clk 0:00:43.7]} 0-1

[Event "Early-Titled-Tuesday-Blitz-January-16-2024"]
[Site "Chess.com"]
[Date "2024.01.16"]
[Round "6"]
[White "stepanosinovsky"]
[Black "Herzog2012"]
[Result "0-1"]
[WhiteElo "2386"]
[BlackElo "2536"]
[TimeControl "180+1"]
[EndTime "9:09:56 PST"]
[Termination "Herzog2012 won by resignation"]

1. Nf3 {[%clk 0:03:00.9]} 1... Nf6 {[%clk 0:02:59.5]} 2. g3 {[%clk 0:03:01.6]}
2... b5 {[%clk 0:02:59.1]} 3. Bg2 {[%clk 0:03:02.5]} 3... Bb7 {[%clk 0:02:59.4]}
4. O-O {[%clk 0:03:03.4]} 4... e6 {[%clk 0:02:56.8]} 5. d3 {[%clk 0:03:03.2]}
5... c5 {[%clk 0:02:56.4]} 6. e4 {[%clk 0:03:02.7]} 6... d6 {[%clk 0:02:56.9]}
7. Nbd2 {[%clk 0:03:02]} 7... Be7 {[%clk 0:02:53.6]} 8. Re1 {[%clk 0:03:01]}
8... O-O {[%clk 0:02:53.3]} 9. c3 {[%clk 0:02:46.8]} 9... Nbd7 {[%clk
0:02:47.4]} 10. Qe2 {[%clk 0:02:46.7]} 10... Rc8 {[%clk 0:02:45.7]} 11. h4
{[%clk 0:02:46.1]} 11... c4 {[%clk 0:02:34.3]} 12. d4 {[%clk 0:02:44.4]} 12...
e5 {[%clk 0:02:33.3]} 13. Nh2 {[%clk 0:01:22.9]} 13... Re8 {[%clk 0:02:13.6]}
14. d5 {[%clk 0:01:11.8]} 14... Nc5 {[%clk 0:02:11.4]} 15. g4 {[%clk 0:01:08.4]}
15... h6 {[%clk 0:02:03.3]} 16. g5 {[%clk 0:01:03.7]} 16... hxg5 {[%clk
0:02:01.9]} 17. hxg5 {[%clk 0:01:04.6]} 17... Nh7 {[%clk 0:01:58.9]} 18. g6
{[%clk 0:01:04.5]} 18... fxg6 {[%clk 0:01:58.4]} 19. Ndf1 {[%clk 0:00:54.4]}
19... Nd3 {[%clk 0:01:55.8]} 20. Rd1 {[%clk 0:00:53.4]} 20... Bg5 {[%clk
0:01:55.2]} 21. Ne3 {[%clk 0:00:39.6]} 21... Rf8 {[%clk 0:01:46.3]} 22. Rxd3
{[%clk 0:00:23.5]} 22... cxd3 {[%clk 0:01:44.5]} 23. Qxd3 {[%clk 0:00:24.4]}
23... a6 {[%clk 0:01:38.3]} 24. Bh3 {[%clk 0:00:23.5]} 24... Rc7 {[%clk
0:01:35.1]} 25. Be6+ {[%clk 0:00:23.4]} 25... Kh8 {[%clk 0:01:35.1]} 26. Nhg4
{[%clk 0:00:19.6]} 26... Bc8 {[%clk 0:01:33.2]} 27. Kg2 {[%clk 0:00:19.7]} 27...
Re7 {[%clk 0:01:23.6]} 28. a4 {[%clk 0:00:18.5]} 28... Rxe6 {[%clk 0:01:15.5]}
29. dxe6 {[%clk 0:00:19.4]} 29... Bxe6 {[%clk 0:01:16.2]} 30. axb5 {[%clk
0:00:18.9]} 30... axb5 {[%clk 0:01:15.5]} 31. Qxb5 {[%clk 0:00:18]} 31... Bxe3
{[%clk 0:01:13.7]} 32. Nxe3 {[%clk 0:00:17.8]} 32... Qh4 {[%clk 0:01:11.5]} 33.
Qe2 {[%clk 0:00:15.6]} 33... Ng5 {[%clk 0:01:04.2]} 34. Bd2 {[%clk 0:00:11.9]}
34... Qh3+ {[%clk 0:01:03.9]} 35. Kg1 {[%clk 0:00:10.7]} 35... Nf3+ {[%clk
0:01:04.1]} 36. Qxf3 {[%clk 0:00:07.2]} 36... Qxf3 {[%clk 0:01:05]} 37. Ra7
{[%clk 0:00:06.1]} 37... Qxf2+ {[%clk 0:01:02.2]} 0-1

[Event "Early-Titled-Tuesday-Blitz-January-16-2024"]
[Site "Chess.com"]
[Date "2024.01.16"]
[Round "6"]
[White "Garbaranza"]
[Black "KarstenHansch"]
[Result "0-1"]
[WhiteElo "2435"]
[BlackElo "2657"]
[TimeControl "180+1"]
[EndTime "9:10:00 PST"]
[Termination "KarstenHansch won by resignation"]

1. e4 {[%clk 0:02:57.7]} 1... c6 {[%clk 0:03:00.1]} 2. Nc3 {[%clk 0:02:57.4]}
2... d5 {[%clk 0:03:00.5]} 3. d4 {[%clk 0:02:57.8]} 3... dxe4 {[%clk 0:03:00.5]}
4. Nxe4 {[%clk 0:02:58.4]} 4... Nf6 {[%clk 0:03:01.4]} 5. Nxf6+ {[%clk
0:02:58.2]} 5... exf6 {[%clk 0:03:02.3]} 6. c3 {[%clk 0:02:58.1]} 6... Bd6
{[%clk 0:03:03.2]} 7. Bd3 {[%clk 0:02:58.2]} 7... O-O {[%clk 0:03:02.9]} 8. Qh5
{[%clk 0:02:58.7]} 8... g6 {[%clk 0:02:58.8]} 9. Qh4 {[%clk 0:02:58.8]} 9...
Re8+ {[%clk 0:02:57.1]} 10. Ne2 {[%clk 0:02:57.8]} 10... f5 {[%clk 0:02:54.2]}
11. Bg5 {[%clk 0:02:57.4]} 11... Be7 {[%clk 0:02:54.6]} 12. Bxe7 {[%clk
0:02:57.4]} 12... Qxe7 {[%clk 0:02:55.5]} 13. Qxe7 {[%clk 0:02:57]} 13... Rxe7
{[%clk 0:02:56.4]} 14. Kd2 {[%clk 0:02:57.2]} 14... Nd7 {[%clk 0:02:54.1]} 15.
Rhe1 {[%clk 0:02:48.2]} 15... Nf6 {[%clk 0:02:53.1]} 16. f3 {[%clk 0:02:45.4]}
16... Bd7 {[%clk 0:02:52.8]} 17. h4 {[%clk 0:02:42.1]} 17... Rae8 {[%clk
0:02:50.2]} 18. Nf4 {[%clk 0:02:41.3]} 18... h6 {[%clk 0:02:35.2]} 19. Nh3
{[%clk 0:02:29.2]} 19... Nd5 {[%clk 0:02:25.2]} 20. Rxe7 {[%clk 0:02:13.8]}
20... Rxe7 {[%clk 0:02:24.4]} 21. Re1 {[%clk 0:02:11.1]} 21... Rxe1 {[%clk
0:01:42.8]} 22. Kxe1 {[%clk 0:02:10.8]} 22... f4 {[%clk 0:01:37.8]} 23. Nf2
{[%clk 0:01:56.9]} 23... Ne3 {[%clk 0:01:35.5]} 24. Bf1 {[%clk 0:01:51.3]} 24...
Bf5 {[%clk 0:01:27.4]} 25. Ne4 {[%clk 0:01:44.7]} 25... Bxe4 {[%clk 0:01:27.2]}
26. fxe4 {[%clk 0:01:44.8]} 26... f6 {[%clk 0:01:21.5]} 27. Kf2 {[%clk
0:01:43.6]} 27... g5 {[%clk 0:01:21.5]} 28. Bd3 {[%clk 0:01:34.4]} 28... Nd1+
{[%clk 0:01:15.9]} 29. Kf3 {[%clk 0:01:31.8]} 29... Nxb2 {[%clk 0:01:16.4]} 30.
Be2 {[%clk 0:01:31.7]} 30... Kg7 {[%clk 0:01:14.2]} 31. Kg4 {[%clk 0:01:30.6]}
31... Na4 {[%clk 0:01:13.2]} 32. c4 {[%clk 0:01:23.5]} 32... Nc3 {[%clk
0:01:12.2]} 33. Bd3 {[%clk 0:01:23.5]} 33... Nxa2 {[%clk 0:01:12.4]} 34. e5
{[%clk 0:01:17.9]} 34... Nb4 {[%clk 0:01:08.8]} 35. Be4 {[%clk 0:01:09.1]} 35...
fxe5 {[%clk 0:01:05.9]} 36. dxe5 {[%clk 0:01:09]} 36... gxh4 {[%clk 0:00:55]}
37. Kxf4 {[%clk 0:01:08]} 37... Kf7 {[%clk 0:00:52.7]} 38. Kg4 {[%clk
0:01:02.9]} 38... a5 {[%clk 0:00:52.9]} 39. Kxh4 {[%clk 0:01:00.5]} 39... a4
{[%clk 0:00:53.3]} 40. Kh5 {[%clk 0:00:59.9]} 40... a3 {[%clk 0:00:52.6]} 41.
Bb1 {[%clk 0:00:59.2]} 41... Kg7 {[%clk 0:00:52.1]} 42. e6 {[%clk 0:00:58.6]}
42... a2 {[%clk 0:00:50.5]} 43. Bxa2 {[%clk 0:00:57.5]} 43... Nxa2 {[%clk
0:00:51.3]} 44. g4 {[%clk 0:00:56.5]} 44... Nc3 {[%clk 0:00:51.5]} 45. e7 {[%clk
0:00:56.4]} 45... Kf7 {[%clk 0:00:51.5]} 46. Kxh6 {[%clk 0:00:56.7]} 46... Ne4
{[%clk 0:00:51.1]} 47. g5 {[%clk 0:00:56.5]} 47... Kxe7 {[%clk 0:00:50.7]} 48.
g6 {[%clk 0:00:55.6]} 48... Nf6 {[%clk 0:00:46.6]} 49. g7 {[%clk 0:00:55.2]}
49... b5 {[%clk 0:00:46.3]} 50. cxb5 {[%clk 0:00:52.6]} 50... cxb5 {[%clk
0:00:46.9]} 51. Kg5 {[%clk 0:00:52.3]} 51... b4 {[%clk 0:00:46.1]} 52. Kf4
{[%clk 0:00:52.5]} 52... b3 {[%clk 0:00:46.5]} 53. Ke3 {[%clk 0:00:52.6]} 53...
b2 {[%clk 0:00:47]} 54. Kd2 {[%clk 0:00:53.2]} 54... b1=Q {[%clk 0:00:47.3]} 0-1

[Event "Early-Titled-Tuesday-Blitz-January-16-2024"]
[Site "Chess.com"]
[Date "2024.01.16"]
[Round "6"]
[White "stollenmonster"]
[Black "sofaceindisguise"]
[Result "0-1"]
[WhiteElo "2891"]
[BlackElo "2694"]
[TimeControl "180+1"]
[EndTime "9:10:04 PST"]
[Termination "sofaceindisguise won by resignation"]

1. e4 {[%clk 0:03:00.9]} 1... c5 {[%clk 0:02:57.8]} 2. Nf3 {[%clk 0:03:00.6]}
2... g6 {[%clk 0:02:57.4]} 3. d4 {[%clk 0:03:00.4]} 3... cxd4 {[%clk 0:02:58.3]}
4. Nxd4 {[%clk 0:03:01]} 4... Bg7 {[%clk 0:02:58.8]} 5. Nc3 {[%clk 0:03:01.7]}
5... Nc6 {[%clk 0:02:59.3]} 6. Nde2 {[%clk 0:03:02]} 6... Nf6 {[%clk 0:02:59.9]}
7. g3 {[%clk 0:03:02.7]} 7... O-O {[%clk 0:03:00.5]} 8. Bg2 {[%clk 0:03:03.3]}
8... d6 {[%clk 0:03:00.9]} 9. h3 {[%clk 0:03:02.4]} 9... a6 {[%clk 0:03:01.4]}
10. a4 {[%clk 0:03:02.8]} 10... Nd7 {[%clk 0:03:01.6]} 11. O-O {[%clk
0:03:02.9]} 11... Nb4 {[%clk 0:02:54.9]} 12. Be3 {[%clk 0:02:59.1]} 12... Nc5
{[%clk 0:02:53.6]} 13. a5 {[%clk 0:02:44.8]} 13... Be6 {[%clk 0:02:49.5]} 14.
Qd2 {[%clk 0:02:39.6]} 14... Rc8 {[%clk 0:02:48.3]} 15. Rfd1 {[%clk 0:02:32.8]}
15... Nc6 {[%clk 0:02:41.5]} 16. Nd5 {[%clk 0:02:15.5]} 16... Ne5 {[%clk
0:02:36.5]} 17. b3 {[%clk 0:02:09.8]} 17... Bxh3 {[%clk 0:02:32]} 18. Bxc5
{[%clk 0:00:54.7]} 18... Rxc5 {[%clk 0:02:29]} 19. c4 {[%clk 0:00:54.2]} 19...
Bg4 {[%clk 0:02:18.3]} 20. Qe3 {[%clk 0:00:42.9]} 20... Nc6 {[%clk 0:02:11.6]}
21. Rac1 {[%clk 0:00:39.4]} 21... Rxa5 {[%clk 0:02:08.9]} 22. Bf3 {[%clk
0:00:33.8]} 22... Bxf3 {[%clk 0:02:08]} 23. Qxf3 {[%clk 0:00:34.7]} 23... e6
{[%clk 0:02:07.7]} 24. Ndf4 {[%clk 0:00:32.8]} 24... Qe7 {[%clk 0:02:06.7]} 25.
Kg2 {[%clk 0:00:32.1]} 25... Ne5 {[%clk 0:02:04.6]} 26. Qe3 {[%clk 0:00:32.2]}
26... Rc8 {[%clk 0:01:58.7]} 27. Qb6 {[%clk 0:00:28.9]} 27... Nc6 {[%clk
0:01:50.5]} 28. Rc2 {[%clk 0:00:29]} 28... Ra3 {[%clk 0:01:45.5]} 29. Rcd2
{[%clk 0:00:27.5]} 29... Be5 {[%clk 0:01:43.2]} 30. Nd3 {[%clk 0:00:26]} 30...
Qc7 {[%clk 0:01:41]} 31. Qe3 {[%clk 0:00:23.6]} 31... Rxb3 {[%clk 0:01:39.7]}
32. Qg5 {[%clk 0:00:24.1]} 32... Bg7 {[%clk 0:01:32.8]} 33. Nef4 {[%clk
0:00:23.5]} 33... Nd4 {[%clk 0:01:30.3]} 34. c5 {[%clk 0:00:20.4]} 34... dxc5
{[%clk 0:01:29.4]} 35. Rh1 {[%clk 0:00:17]} 35... c4 {[%clk 0:01:28.1]} 36. Nc1
{[%clk 0:00:12.9]} 36... Rb5 {[%clk 0:01:27.5]} 37. Qh4 {[%clk 0:00:12.4]} 37...
h6 {[%clk 0:01:28.1]} 38. Qh3 {[%clk 0:00:10.2]} 38... c3 {[%clk 0:01:28.1]} 39.
Ra2 {[%clk 0:00:09.7]} 39... Rb2 {[%clk 0:01:27.2]} 40. Ra4 {[%clk 0:00:09.2]}
40... Qc6 {[%clk 0:01:27.2]} 41. Rxd4 {[%clk 0:00:07.3]} 41... Bxd4 {[%clk
0:01:25.4]} 42. Re1 {[%clk 0:00:05.4]} 42... Bg7 {[%clk 0:01:25]} 43. Qg4 {[%clk
0:00:03.9]} 43... Rd8 {[%clk 0:01:23.9]} 44. Ncd3 {[%clk 0:00:04.4]} 44... Rd2
{[%clk 0:01:20.4]} 45. Re3 {[%clk 0:00:03.2]} 45... c2 {[%clk 0:01:20.5]} 46.
Nxg6 {[%clk 0:00:03.5]} 46... fxg6 {[%clk 0:01:20.1]} 47. Qxg6 {[%clk
0:00:04.4]} 47... R2xd3 {[%clk 0:01:19.8]} 0-1

[Event "Early-Titled-Tuesday-Blitz-January-16-2024"]
[Site "Chess.com"]
[Date "2024.01.16"]
[Round "6"]
[White "NelsonLinda"]
[Black "Zohid6"]
[Result "0-1"]
[WhiteElo "2615"]
[BlackElo "2819"]
[TimeControl "180+1"]
[EndTime "9:10:05 PST"]
[Termination "Zohid6 won on time"]

1. Nf3 {[%clk 0:03:00.9]} 1... Nf6 {[%clk 0:02:59.8]} 2. b3 {[%clk 0:03:01]}
2... d5 {[%clk 0:02:59.9]} 3. Bb2 {[%clk 0:03:01.5]} 3... c5 {[%clk 0:03:00.2]}
4. e3 {[%clk 0:03:01.7]} 4... Nc6 {[%clk 0:03:00.7]} 5. Bb5 {[%clk 0:03:02.2]}
5... Bd7 {[%clk 0:03:01.2]} 6. O-O {[%clk 0:03:00]} 6... Rc8 {[%clk 0:03:01]} 7.
d4 {[%clk 0:02:59.7]} 7... cxd4 {[%clk 0:03:00.5]} 8. exd4 {[%clk 0:02:59.9]}
8... a6 {[%clk 0:03:00.6]} 9. Bxc6 {[%clk 0:02:58.4]} 9... Bxc6 {[%clk
0:03:01.5]} 10. Ne5 {[%clk 0:02:58.9]} 10... e6 {[%clk 0:03:01.6]} 11. Nd2
{[%clk 0:02:55.2]} 11... Bd6 {[%clk 0:03:01.1]} 12. Ndf3 {[%clk 0:02:51.2]}
12... O-O {[%clk 0:03:00.5]} 13. Re1 {[%clk 0:02:51]} 13... Ne4 {[%clk
0:02:59.7]} 14. c4 {[%clk 0:02:51]} 14... f6 {[%clk 0:02:50.7]} 15. Nxc6 {[%clk
0:02:50]} 15... bxc6 {[%clk 0:02:51.6]} 16. Nd2 {[%clk 0:02:44.6]} 16... f5
{[%clk 0:02:50.1]} 17. Nf1 {[%clk 0:02:34.6]} 17... Rf6 {[%clk 0:02:48.1]} 18.
f3 {[%clk 0:02:33.7]} 18... Ng5 {[%clk 0:02:33.5]} 19. Rc1 {[%clk 0:02:14.8]}
19... Rh6 {[%clk 0:02:25.2]} 20. Qd2 {[%clk 0:02:02.7]} 20... Qf6 {[%clk
0:02:19.2]} 21. Rc2 {[%clk 0:01:16.6]} 21... Qg6 {[%clk 0:02:15.1]} 22. Qe2
{[%clk 0:00:52.6]} 22... Rf8 {[%clk 0:02:08.1]} 23. Bc1 {[%clk 0:00:52]} 23...
Nh3+ {[%clk 0:02:02.8]} 24. Kh1 {[%clk 0:00:50.8]} 24... Nf4 {[%clk 0:02:03.7]}
25. Bxf4 {[%clk 0:00:43.1]} 25... Bxf4 {[%clk 0:02:04.6]} 26. cxd5 {[%clk
0:00:40]} 26... exd5 {[%clk 0:01:57.7]} 27. g3 {[%clk 0:00:29.3]} 27... Bxg3
{[%clk 0:01:47.7]} 28. Nxg3 {[%clk 0:00:16.7]} 28... Qxg3 {[%clk 0:01:47.8]} 29.
Rg1 {[%clk 0:00:16.5]} 29... Qf4 {[%clk 0:01:42.4]} 30. Qd3 {[%clk 0:00:08.3]}
30... Re8 {[%clk 0:01:40.6]} 31. Rcg2 {[%clk 0:00:08]} 31... Kh8 {[%clk
0:01:38.6]} 32. Qxa6 {[%clk 0:00:03.1]} 32... Qxf3 {[%clk 0:01:33.8]} 33. Rf1
{[%clk 0:00:03.6]} 33... Qe4 {[%clk 0:01:25.3]} 34. Rg1 {[%clk 0:00:01.5]} 34...
f4 {[%clk 0:01:23.9]} 35. Rf1 {[%clk 0:00:01.4]} 35... Rg6 {[%clk 0:01:23.6]}
36. Rg1 {[%clk 0:00:01.1]} 36... Rxg2 {[%clk 0:01:10.1]} 37. Rxg2 {[%clk
0:00:02]} 37... Qf3 {[%clk 0:01:10.4]} 38. Qd3 {[%clk 0:00:01.4]} 38... Qxd3
{[%clk 0:01:10.1]} 0-1